fUSD/lending_fUSD_20250905
["ID","MTS","AMOUNT","RATE_DAILY","PERIOD"]
[383716385,1757097079429,-400.0,0.0003589,10]
[383716386,1757097079439,-649.71,0.0003589,10]
[383716387,1757097079449,-400.0,0.0003589,10]
[383716388,1757097079463,-400.0,0.0003589,10]
[383716389,1757097079473,-400.0,0.0003589,10]
[383716390,1757097079483,-400.0,0.0003589,10]
[383716391,1757097079494,-400.0,0.0003589,10]
[383716392,1757097079504,-400.0,0.0003589,10]
[383716393,1757097079514,-400.0,0.0003589,10]
[383716394,1757097079524,-475.38,0.0003589,10]
[383716395,1757097079536,-400.0,0.0003589,10]
[383716396,1757097079546,-400.0,0.0003589,10]
[383716397,1757097079555,-400.0,0.0003589,10]
[383716398,1757097079565,-400.0,0.0003589,10]
[383716399,1757097079575,-400.0,0.0003589,10]
[383716400,1757097079584,-400.0,0.0003589,10]
[383716401,1757097079593,-400.0,0.0003589,10]
[383716402,1757097079603,-400.0,0.0003589,10]
[383716403,1757097079613,-400.0,0.0003589,10]
[383716404,1757097079623,-400.0,0.0003589,10]
[383716405,1757097079635,-400.0,0.0003589,10]
[383716406,1757097079646,-400.0,0.0003589,10]
[383716407,1757097079656,-400.0,0.0003589,10]
[383716408,1757097079667,-728.94,0.0003589,10]
[383716409,1757097079677,-2372.31,0.0003589,10]
[383716410,1757097079687,-400.0,0.0003589,10]
[383716411,1757097079697,-400.0,0.0003589,10]
[383716412,1757097079706,-400.0,0.0003589,10]
[383716413,1757097079716,-400.0,0.0003589,10]
[383716414,1757097079727,-400.0,0.0003589,10]
[383716415,1757097079737,-400.0,0.0003589,10]
[383716416,1757097079747,-400.0,0.0003589,10]
[383716417,1757097079756,-400.0,0.0003589,10]
[383716418,1757097079767,-400.0,0.0003589,10]
[383716419,1757097079777,-982.07,0.0003589,10]
[383716420,1757097079787,-533.1,0.0003589,10]
[383716421,1757097079797,-421.37,0.0003589,10]
[383716422,1757097079807,-676.44,0.0003589,10]
[383716423,1757097079819,-434.56,0.0003589,10]
[383716424,1757097079829,-400.0,0.0003589,10]
[383716425,1757097079839,-400.0,0.0003589,10]
[383716426,1757097079849,-400.0,0.0003589,10]
[383716427,1757097079859,-400.0,0.0003589,10]
[383716428,1757097079869,-400.0,0.0003589,7]
[383716429,1757097079879,-400.0,0.0003589,10]
[383716430,1757097079889,-400.0,0.0003589,10]
[383716431,1757097079899,-400.0,0.0003589,10]
[383716432,1757097079909,-400.0,0.0003589,10]
[383716433,1757097079919,-400.0,0.0003589,10]
[383716434,1757097079929,-400.0,0.0003589,10]
[383716435,1757097079938,-400.0,0.0003589,10]
[383716436,1757097079947,-400.0,0.0003589,10]
[383716437,1757097079956,-400.0,0.0003589,10]
[383716438,1757097079966,-400.0,0.0003589,10]
[383716439,1757097079977,-400.0,0.0003589,10]
[383716440,1757097079987,-482.65,0.0003589,10]
[383716441,1757097079996,-400.0,0.0003589,10]
[383716442,1757097080007,-400.0,0.0003589,10]
[383716443,1757097080018,-400.0,0.0003589,10]
[383716444,1757097080028,-400.0,0.0003589,10]
[383716445,1757097080038,-463.7,0.0003589,10]
[383716446,1757097080049,-400.0,0.0003589,10]
[383716447,1757097080059,-400.0,0.0003589,10]
[383716448,1757097080069,-400.0,0.0003589,10]
[383716449,1757097080078,-2207.94,0.0003589,10]
[383716450,1757097080088,-400.0,0.0003589,10]
[383716451,1757097080099,-401.59070344,0.0003589,7]
[383716452,1757097080109,-400.0,0.0003589,10]
[383716453,1757097080119,-400.0,0.0003589,10]
[383716454,1757097080129,-400.0,0.0003589,10]
[383716455,1757097080139,-400.0,0.0003589,10]
[383716456,1757097080148,-400.0,0.0003589,10]
[383716457,1757097080160,-400.0,0.0003589,10]
[383716458,1757097080170,-400.0,0.0003589,10]
[383716459,1757097080182,-400.0,0.0003589,10]
[383716460,1757097080192,-400.0,0.0003589,10]
[383716461,1757097080201,-416.85,0.0003589,10]
[383716462,1757097080210,-400.0,0.0003589,10]
[383716463,1757097080219,-880.46,0.0003589,10]
[383716464,1757097080229,-400.0,0.0003589,10]
[383716465,1757097080238,-400.0,0.0003589,10]
[383716466,1757097080248,-400.0,0.0003589,10]
[383716467,1757097080257,-400.0,0.0003589,10]
[383716468,1757097080266,-400.0,0.0003589,10]
[383716469,1757097080276,-400.0,0.0003589,10]
[383716470,1757097080285,-1208.21,0.0003589,10]
[383716471,1757097080296,-400.0,0.0003589,10]
[383716472,1757097080306,-400.0,0.0003589,10]
[383716473,1757097080316,-400.0,0.0003589,10]
[383716474,1757097080326,-400.0,0.0003589,10]
[383716475,1757097080335,-400.0,0.0003589,10]
[383716476,1757097080344,-400.0,0.0003589,10]
[383716477,1757097080354,-400.0,0.0003589,10]
[383716478,1757097080364,-400.0,0.0003589,10]
[383716479,1757097080373,-400.0,0.0003589,10]
[383716480,1757097080383,-400.0,0.0003589,10]
[383716481,1757097080392,-476.49,0.0003589,10]
[383716482,1757097080401,-453.77,0.0003589,10]
[383716483,1757097080411,-400.88738569,0.0003589,10]
[383716484,1757097080420,-400.0,0.0003589,10]
[383716485,1757097080429,-400.0,0.0003589,10]
[383716486,1757097080438,-400.0,0.0003589,10]
[383716487,1757097080447,-400.0,0.0003589,10]
[383716488,1757097080461,-400.0,0.0003589,10]
[383716489,1757097080471,-402.13341642,0.0003589,10]
[383716490,1757097080480,-400.0,0.0003589,10]
[383716491,1757097080489,-400.0,0.0003589,10]
[383716492,1757097080499,-401.99396584,0.0003589,10]
[383716493,1757097080509,-400.0,0.0003589,10]
[383716494,1757097080518,-1305.3,0.0003589,10]
[383716495,1757097080536,-400.0,0.0003589,10]
[383716496,1757097080548,-400.0,0.0003589,10]
[383716497,1757097080558,-400.0,0.0003589,10]
[383716498,1757097080568,-400.0,0.0003589,10]
[383716499,1757097080578,-400.0,0.0003589,10]
[383716500,1757097080587,-400.0,0.0003589,10]
[383716501,1757097080596,-400.0,0.0003589,10]
[383716502,1757097080606,-400.0,0.0003589,10]
[383716503,1757097080617,-471.15,0.0003589,10]
[383716504,1757097080627,-400.0,0.0003589,10]
[383716505,1757097080636,-400.0,0.0003589,10]
[383716506,1757097080646,-467.58,0.0003589,10]
[383716507,1757097080657,-400.0,0.0003589,10]
[383716508,1757097080667,-457.35,0.0003589,10]
[383716509,1757097080676,-595.2,0.0003589,10]
[383716510,1757097080686,-400.0,0.0003589,10]
[383716511,1757097080695,-400.0,0.0003589,10]
[383716512,1757097080705,-400.0,0.0003589,10]
[383716513,1757097080715,-400.0,0.0003589,10]
[383716514,1757097080724,-400.0,0.0003589,10]
[383716515,1757097080733,-343.15557692,0.0003589,10]
[383716516,1757097080743,-400.0,0.0003589,10]
[383716517,1757097080753,-151.0,0.0003589,30]
[383716518,1757097080762,-151.0,0.0003589,30]
[383716519,1757097080771,-400.0,0.0003589,10]
[383716520,1757097080782,-908.93,0.0003589,10]
[383716521,1757097080792,-400.0,0.0003589,10]
[383716522,1757097080802,-400.0,0.0003589,10]
[383716523,1757097080811,-400.0,0.0003589,10]
[383716524,1757097080823,-400.0,0.0003589,10]
[383716525,1757097080833,-400.0,0.0003589,10]
[383716526,1757097080843,-400.0,0.0003589,10]
[383716527,1757097080853,-405.4,0.0003589,10]
[383716528,1757097080863,-400.0,0.0003589,10]
[383716529,1757097080873,-463.94,0.0003589,10]
[383716530,1757097080883,-482.71,0.0003589,10]
[383716531,1757097080892,-400.0,0.0003589,10]
[383716532,1757097080902,-400.0,0.0003589,10]
[383716533,1757097080911,-516.7,0.0003589,10]
[383716534,1757097080921,-400.0,0.0003589,10]
[383716535,1757097080931,-151.0,0.0003589,30]
[383716536,1757097080941,-400.0,0.0003589,10]
[383716537,1757097080951,-151.0,0.0003589,30]
[383716538,1757097080960,-400.0,0.0003589,10]
[383716539,1757097080970,-400.0,0.0003589,10]
[383716540,1757097080980,-300.0,0.0003589,10]
[383716541,1757097080989,-400.0,0.0003589,10]
[383716542,1757097080999,-402.20416585,0.0003589,10]
[383716543,1757097081009,-1945.75,0.0003589,10]
[383716544,1757097081018,-400.0,0.0003589,10]
[383716545,1757097081028,-400.0,0.0003589,10]
[383716546,1757097081037,-400.0,0.0003589,10]
[383716547,1757097081047,-400.0,0.0003589,2]
[383716548,1757097081057,-343.833871,0.0003589,30]
[383716549,1757097081066,-400.0,0.0003589,10]
[383716550,1757097081076,-400.0,0.0003589,10]
[383716551,1757097081086,-343.833871,0.0003589,30]
[383716552,1757097081096,-400.0,0.0003589,10]
[383716553,1757097081107,-400.0,0.0003589,10]
[383716554,1757097081118,-400.0,0.0003589,10]
[383716555,1757097081128,-343.833871,0.0003589,30]
[383716556,1757097081141,-343.833871,0.0003589,30]
[383716557,1757097081151,-400.0,0.0003589,10]
[383716558,1757097081163,-400.0,0.0003589,10]
[383716559,1757097081173,-1134.06,0.0003589,10]
[383716560,1757097081183,-400.0,0.0003589,10]
[383716561,1757097081193,-400.0,0.0003589,10]
[383716562,1757097081204,-400.0,0.0003589,10]
[383716563,1757097081215,-343.833871,0.0003589,30]
[383716564,1757097081227,-343.833871,0.0003589,30]
[383716565,1757097081238,-400.0,0.0003589,10]
[383716566,1757097081248,-400.0,0.0003589,10]
[383716567,1757097081259,-151.0,0.0003589,30]
[383716568,1757097081271,-400.0,0.0003589,10]
[383716569,1757097081280,-343.833871,0.0003589,30]
[383716570,1757097081290,-151.0,0.0003589,30]
[383716571,1757097081300,-343.833878,0.0003589,30]
[383716572,1757097081310,-403.80724653,0.0003589,10]
[383716573,1757097081319,-400.0,0.0003589,10]
[383716574,1757097081330,-1837.2,0.0003589,10]
[383716575,1757097081339,-400.0,0.0003589,10]
[383716576,1757097081349,-400.0,0.0003589,10]
[383716577,1757097081359,-151.0,0.0003589,30]
[383716578,1757097081371,-151.0,0.0003589,30]
[383716579,1757097081381,-404.64518565,0.0003589,10]
[383716580,1757097081391,-400.0,0.0003589,10]
[383716581,1757097081401,-400.0,0.0003589,10]
[383716582,1757097081411,-402.84746358,0.0003589,10]
[383716583,1757097081421,-151.0,0.0003589,30]
[383716584,1757097081431,-151.0,0.0003589,30]
[383716585,1757097081441,-400.0,0.0003589,10]
[383716586,1757097081452,-400.0,0.0003589,10]
[383716587,1757097081467,-400.0,0.0003589,10]
[383716588,1757097081478,-400.0,0.0003589,7]
[383716589,1757097081489,-400.0,0.0003589,10]
[383716590,1757097081501,-400.0,0.0003589,10]
[383716591,1757097081511,-400.0,0.0003589,10]
[383716592,1757097081521,-3527.08,0.0003589,10]
[383716593,1757097081533,-400.0,0.0003589,10]
[383716594,1757097081543,-493.23,0.0003589,10]
[383716595,1757097081555,-400.0,0.0003589,10]
[383716596,1757097081572,-400.0,0.0003589,10]
[383716597,1757097081592,-150.89,0.0003589,10]
[383716598,1757097081603,-400.0,0.0003589,10]
[383716599,1757097081614,-400.0,0.0003589,10]
[383716600,1757097081624,-151.0,0.0003589,30]
[383716601,1757097081633,-151.0,0.0003589,30]
[383716602,1757097081643,-151.0,0.0003589,30]
[383716603,1757097081652,-151.0,0.0003589,30]
[383716604,1757097081663,-400.0,0.0003589,10]
[383716605,1757097081672,-400.0,0.0003589,10]
[383716606,1757097081682,-151.0,0.0003589,30]
[383716607,1757097081692,-402.10243338,0.0003589,10]
[383716608,1757097081702,-400.0,0.0003589,10]
[383716609,1757097081711,-400.0,0.0003589,10]
[383716610,1757097081721,-400.0,0.0003589,10]
[383716611,1757097081730,-400.0,0.0003589,10]
[383716612,1757097081739,-602.95,0.0003589,10]
[383716613,1757097081749,-400.0,0.0003589,10]
[383716614,1757097081758,-400.0,0.0003589,10]
[383716615,1757097081769,-400.0,0.0003589,10]
[383716616,1757097081779,-401.69743027,0.0003589,10]
[383716617,1757097081788,-400.0,0.0003589,10]
[383716618,1757097081797,-400.0,0.0003589,10]
[383716619,1757097081807,-406.94952039,0.0003589,10]
[383716620,1757097081817,-1000.0,0.0003589,10]
[383716621,1757097081827,-400.0,0.0003589,10]
[383716622,1757097081837,-400.0,0.0003589,10]
[383716623,1757097081846,-2505.36,0.0003589,10]
[383716624,1757097081856,-400.0,0.0003589,10]
[383716625,1757097081865,-400.0,0.0003589,10]
[383716626,1757097081875,-400.0,0.0003589,10]
[383716627,1757097081884,-400.0,0.0003589,10]
[383716628,1757097081894,-400.0,0.0003589,10]
[383716629,1757097081903,-400.0,0.0003589,10]
[383716630,1757097081912,-400.0,0.0003589,10]
[383716631,1757097081922,-410.51,0.0003589,10]
[383716632,1757097081932,-400.0,0.0003589,10]
[383716633,1757097081943,-400.0,0.0003589,10]
[383716634,1757097081953,-401.08334791,0.0003589,10]
[383716635,1757097081963,-400.0,0.0003589,10]
[383716636,1757097081974,-151.763988,0.0003589,30]
[383716637,1757097081986,-698.642171,0.0003589,30]
[383716638,1757097081996,-545.96,0.0003589,10]
[383716639,1757097082008,-400.0,0.0003589,10]
[383716640,1757097082019,-400.0,0.0003589,10]
[383716641,1757097082029,-151.763988,0.0003589,30]
[383716642,1757097082040,-400.0,0.0003589,10]
[383716643,1757097082049,-151.763988,0.0003589,30]
[383716644,1757097082061,-400.0,0.0003589,10]
[383716645,1757097082072,-698.642171,0.0003589,30]
[383716646,1757097082084,-151.763983,0.0003589,30]
[383716647,1757097082095,-400.0,0.0003589,10]
[383716648,1757097082104,-440.53,0.0003589,10]
[383716649,1757097082115,-400.0,0.0003589,10]
[383716650,1757097082124,-698.642171,0.0003589,30]
[383716651,1757097082134,-159.754584,0.0003589,30]
[383716652,1757097082145,-400.0,0.0003589,10]
[383716653,1757097082154,-433.25,0.0003589,10]
[383716654,1757097082163,-400.0,0.0003589,10]
[383716655,1757097082172,-400.0,0.0003589,10]
[383716656,1757097082181,-698.642174,0.0003589,30]
[383716657,1757097082190,-400.0,0.0003589,10]
[383716658,1757097082199,-400.0,0.0003589,10]
[383716659,1757097082209,-496.52,0.0003589,10]
[383716660,1757097082454,-284.24407011,0.0003589,10]
[383716661,1757097082466,-400.0,0.0003589,10]
[383716662,1757097082476,-151.0,0.0003589,30]
[383716663,1757097082489,-276.0061,0.0003589,30]
[383716664,1757097082499,-400.0,0.0003589,10]
[383716665,1757097082511,-151.0,0.0003589,30]
[383716666,1757097082521,-276.0061,0.0003589,30]
[383716667,1757097082532,-402.17027971,0.0003589,10]
[383716668,1757097082542,-204.318104,0.0003589,30]
[383716669,1757097082552,-276.0061,0.0003589,30]
[383716670,1757097082561,-478.14,0.0003589,10]
[383716671,1757097082570,-400.0,0.0003589,10]
[383716672,1757097082581,-400.0,0.0003589,10]
[383716673,1757097082599,-957.28,0.0003589,10]
[383716674,1757097082613,-276.006109,0.0003589,30]
[383716675,1757097082623,-1868.618448,0.0003589,30]
[383716676,1757097082633,-431.18,0.0003589,10]
[383716677,1757097082646,-151.0,0.0003589,30]
[383716678,1757097082658,-451.77085108,0.0003589,10]
[383716679,1757097082668,-400.0,0.0003589,10]
[383716680,1757097082679,-1868.618448,0.0003589,30]
[383716681,1757097082689,-400.0,0.0003589,10]
[383716682,1757097082700,-400.0,0.0003589,10]
[383716683,1757097082710,-151.0,0.0003589,30]
[383716684,1757097082721,-400.0,0.0003589,10]
[383716685,1757097082732,-1868.618448,0.0003589,30]
[383716686,1757097082743,-400.0,0.0003589,10]
[383716687,1757097082754,-151.0,0.0003589,30]
[383716688,1757097082764,-1868.618438,0.0003589,30]
[383716689,1757097082774,-400.0,0.0003589,10]
[383716690,1757097082783,-400.0,0.0003589,10]
[383716691,1757097082793,-400.0,0.0003589,10]
[383716692,1757097082803,-177.75628107,0.0003589,10]
[383716693,1757097082813,-400.0,0.0003589,10]
[383716694,1757097082824,-400.0,0.0003589,10]
[383716695,1757097082834,-400.0,0.0003589,10]
[383716696,1757097082844,-522.31106786,0.0003589,10]
[383716697,1757097082854,-400.0,0.0003589,10]
[383716698,1757097082864,-978.13,0.0003589,10]
[383716699,1757097082874,-400.0,0.0003589,10]
[383716700,1757097082885,-400.0,0.0003589,10]
[383716701,1757097082895,-400.0,0.0003589,10]
[383716702,1757097082905,-400.0,0.0003589,10]
[383716703,1757097082915,-400.0,0.0003589,10]
[383716704,1757097082925,-170.734608,0.0003589,30]
[383716705,1757097082936,-400.0,0.0003589,10]
[383716706,1757097082947,-400.0,0.0003589,10]
[383716707,1757097082958,-405.81,0.0003589,10]
[383716708,1757097082968,-401.90230888,0.0003589,10]
[383716709,1757097082981,-400.0,0.0003589,10]
[383716710,1757097082990,-400.0,0.0003589,10]
[383716711,1757097083001,-624.317567,0.0003589,30]
[383716712,1757097083010,-624.317567,0.0003589,30]
[383716713,1757097083021,-170.734608,0.0003589,30]
[383716714,1757097083033,-400.0,0.0003589,10]
[383716715,1757097083044,-624.317567,0.0003589,30]
[383716716,1757097083054,-400.0,0.0003589,10]
[383716717,1757097083065,-400.0,0.0003589,10]
[383716718,1757097083075,-400.0,0.0003589,10]
[383716719,1757097083086,-170.734608,0.0003589,30]
[383716720,1757097083096,-400.0,0.0003589,10]
[383716721,1757097083108,-401.44577646,0.0003589,10]
[383716722,1757097083119,-400.0,0.0003589,10]
[383716723,1757097083129,-624.31756,0.0003589,30]
[383716724,1757097083139,-400.0,0.0003589,10]
[383716725,1757097083149,-170.7346,0.0003589,30]
[383716726,1757097083159,-400.0,0.0003589,10]
[383716727,1757097083169,-400.0,0.0003589,10]
[383716728,1757097083179,-400.0,0.0003589,10]
[383716729,1757097083189,-151.0,0.0003589,30]
[383716730,1757097083199,-828.52,0.0003589,10]
[383716731,1757097083210,-400.0,0.0003589,10]
[383716732,1757097083221,-468.45,0.0003589,10]
[383716733,1757097083231,-445.19,0.0003589,10]
[383716734,1757097083242,-400.0,0.0003589,10]
[383716735,1757097083252,-400.0,0.0003589,10]
[383716736,1757097083262,-400.0,0.0003589,10]
[383716737,1757097083272,-400.0,0.0003589,10]
[383716738,1757097083284,-400.0,0.0003589,10]
[383716739,1757097083296,-401.30328823,0.0003589,10]
[383716740,1757097083306,-400.0,0.0003589,10]
[383716741,1757097083317,-400.0,0.0003589,10]
[383716742,1757097083327,-400.0,0.0003589,10]
[383716743,1757097083336,-400.0,0.0003589,10]
[383716744,1757097083346,-401.94985524,0.0003589,10]
[383716745,1757097083355,-400.0,0.0003589,10]
[383716746,1757097083365,-496.31,0.0003589,10]
[383716747,1757097083375,-400.0,0.0003589,10]
[383716748,1757097083384,-400.0,0.0003589,10]
[383716749,1757097083394,-500.0,0.0003589,2]
[383716750,1757097083403,-400.0,0.0003589,10]
[383716751,1757097083413,-400.0,0.0003589,10]
[383716752,1757097083422,-400.0,0.0003589,10]
[383716753,1757097083431,-400.0,0.0003589,10]
[383716754,1757097083441,-408.86,0.0003589,10]
[383716755,1757097083451,-400.0,0.0003589,10]
[383716756,1757097083467,-400.0,0.0003589,10]
[383716757,1757097083477,-400.0,0.0003589,10]
[383716758,1757097083487,-400.0,0.0003589,10]
[383716759,1757097083498,-400.0,0.0003589,10]
[383716760,1757097083508,-400.0,0.0003589,10]
[383716761,1757097083518,-400.0,0.0003589,10]
[383716762,1757097083529,-400.0,0.0003589,10]
[383716763,1757097083540,-400.0,0.0003589,10]
[383716764,1757097083550,-400.33813691,0.0003589,10]
[383716765,1757097083559,-400.0,0.0003589,10]
[383716766,1757097083568,-400.0,0.0003589,10]
[383716767,1757097083578,-400.0,0.0003589,10]
[383716768,1757097083587,-400.0,0.0003589,10]
[383716769,1757097083597,-400.0,0.0003589,10]
[383716770,1757097083609,-401.50139305,0.0003589,10]
[383716771,1757097083619,-400.0,0.0003589,10]
[383716772,1757097083632,-400.0,0.0003589,10]
[383716773,1757097083641,-400.0,0.0003589,10]
[383716774,1757097083651,-400.0,0.0003589,10]
[383716775,1757097083661,-400.0,0.0003589,10]
[383716776,1757097083671,-400.0,0.0003589,10]
[383716777,1757097083682,-400.0,0.0003589,10]
[383716778,1757097083692,-2788.49,0.0003589,10]
[383716779,1757097083702,-400.0,0.0003589,10]
[383716780,1757097083712,-400.0,0.0003589,10]
[383716781,1757097083721,-400.0,0.0003589,10]
[383716782,1757097083731,-400.0,0.0003589,10]
[383716783,1757097083740,-400.0,0.0003589,10]
[383716784,1757097083750,-510.42,0.0003589,10]
[383716785,1757097083761,-629.56,0.0003589,10]
[383716786,1757097083774,-295.1519614,0.0003589,10]
[383716787,1757097083783,-400.0,0.0003589,10]
[383716788,1757097083793,-400.0,0.0003589,10]
[383716789,1757097083802,-400.0,0.0003589,10]
[383716790,1757097083811,-400.0,0.0003589,10]
[383716791,1757097083823,-400.0,0.0003589,10]
[383716792,1757097083833,-400.0,0.0003589,10]
[383716793,1757097083843,-400.0,0.0003589,10]
[383716794,1757097083853,-400.0,0.0003589,10]
[383716795,1757097083863,-402.69214566,0.0003589,10]
[383716796,1757097083873,-400.0,0.0003589,10]
[383716797,1757097083883,-400.0,0.0003589,10]
[383716798,1757097083893,-400.0,0.0003589,10]
[383716799,1757097083904,-400.0,0.0003589,10]
[383716800,1757097083914,-400.0,0.0003589,10]
[383716801,1757097083923,-499.55,0.0003589,10]
[383716802,1757097083933,-400.0,0.0003589,10]
[383716803,1757097083943,-400.0,0.0003589,10]
[383716804,1757097083952,-400.0,0.0003589,10]
[383716805,1757097083964,-400.0,0.0003589,10]
[383716806,1757097083974,-400.0,0.0003589,10]
[383716807,1757097083985,-400.0,0.0003589,10]
[383716808,1757097083995,-400.0,0.0003589,10]
[383716809,1757097084006,-400.0,0.0003589,10]
[383716810,1757097084016,-402.33467566,0.0003589,10]
[383716811,1757097084026,-2173.35,0.0003589,10]
[383716812,1757097084036,-400.0,0.0003589,10]
[383716813,1757097084046,-400.0,0.0003589,10]
[383716814,1757097084056,-415.51,0.0003589,10]
[383716815,1757097084066,-400.0,0.0003589,10]
[383716816,1757097084075,-400.0,0.0003589,10]
[383716817,1757097084085,-400.0,0.0003589,10]
[383716818,1757097084095,-400.0,0.0003589,10]
[383716819,1757097084107,-400.0,0.0003589,10]
[383716820,1757097084116,-400.0,0.0003589,10]
[383716821,1757097084126,-169.8469356,0.0003589,10]
[383716822,1757097084137,-400.0,0.0003589,10]
[383716823,1757097084146,-400.0,0.0003589,10]
[383716824,1757097084157,-491.59,0.0003589,10]
[383716825,1757097084166,-400.0,0.0003589,10]
[383716826,1757097084176,-501.94258375,0.0003589,10]
[383716827,1757097084186,-157.0,0.0003589,30]
[383716828,1757097084196,-1800.0,0.000359,13]
[383716829,1757097084205,-41635.92,0.000359,14]
[383716830,1757097084216,-150.0,0.00035915,120]
[383716831,1757097084226,-1721.04120038,0.00035927,2]
[383716832,1757097084236,-1252.69154515,0.00035932,7]
[383716833,1757097084250,-200.0,0.00035952,2]
[383716834,1757097084261,-933.30342496,0.00035957,7]
[383716835,1757097084271,-1300.0,0.00035962,7]
[383716836,1757097084280,-617.89901712,0.00035972,7]
[383716837,1757097084291,-1001.3327232,0.00035981,7]
[383716838,1757097084302,-517.0,0.0003599,2]
[383716839,1757097084313,-150.0,0.0003599,120]
[383716840,1757097084323,-2000.0,0.00036,36]
[383716841,1757097084332,-173.0,0.00036,30]
[383716842,1757097084342,-157.0,0.00036,30]
[383716843,1757097084352,-150.0,0.00036016,120]
[383716844,1757097084363,-264.16359539,0.00036044,2]
[383716845,1757097084374,-500.0,0.00036044,2]
[383716846,1757097084384,-253.34,0.00036044,2]
[383716847,1757097084394,-195.36893609,0.00036044,2]
[383716848,1757097084404,-150.0,0.00036056,120]
[383716849,1757097084414,-212.0,0.0003606,30]
[383716850,1757097084424,-200.0,0.0003606,2]
[383716851,1757097084434,-2004.34436856,0.00036064,2]
[383716852,1757097084444,-5830.72205864,0.00036064,2]
[383716853,1757097084454,-201.627683,0.00036064,7]
[383716854,1757097084467,-7523.14357676,0.00036064,2]
[383716855,1757097084478,-449.04242172,0.00036064,2]
[383716856,1757097084487,-282.44656654,0.00036064,2]
[383716857,1757097084499,-500.0,0.00036085,30]
[383716858,1757097084509,-150.0,0.00036088,120]
[383716859,1757097084520,-4116.49,0.000361,7]
[383716860,1757097084530,-770.33,0.000361,7]
[383716861,1757097084540,-500.0,0.00036145,2]
[383716862,1757097084551,-150.0,0.00036153,120]
[383716863,1757097084559,-500.0,0.00036162,10]
[383716864,1757097084569,-500.0,0.00036162,10]
[383716865,1757097084578,-527.7,0.00036162,2]
[383716866,1757097084587,-500.0,0.00036162,10]
[383716867,1757097084597,-516.67,0.00036163,10]
[383716868,1757097084606,-516.67,0.00036163,10]
[383716869,1757097084615,-500.0,0.00036163,10]
[383716870,1757097084625,-500.0,0.00036163,10]
[383716871,1757097084635,-500.0,0.00036163,10]
[383716872,1757097084644,-500.0,0.00036163,10]
[383716873,1757097084655,-190.69561239,0.00036163,10]
[383716874,1757097084664,-507.24,0.00036163,2]
[383716875,1757097084673,-507.24,0.00036163,2]
[383716876,1757097084683,-527.7,0.00036163,2]
[383716877,1757097084692,-527.7,0.00036163,2]
[383716878,1757097084702,-758.96,0.00036163,10]
[383716879,1757097084712,-758.96,0.00036163,10]
[383716880,1757097084721,-500.0,0.00036163,10]
[383716881,1757097084730,-500.0,0.00036163,10]
[383716882,1757097084740,-500.0,0.00036163,10]
[383716883,1757097084750,-537.81,0.00036163,10]
[383716884,1757097084760,-537.81,0.00036163,10]